[Event "Late-Titled-Tuesday-Blitz-January-23-2024"]
[Site "Chess.com"]
[Date "2024.01.23"]
[Round "2"]
[White "PapaieDudu"]
[Black "Ellaijio_B"]
[Result "0-1"]
[WhiteElo "2423"]
[BlackElo "2747"]
[TimeControl "180+1"]
[EndTime "14:16:47 PST"]
[Termination "Ellaijio_B won by resignation"]

1. e4 {[%clk 0:02:58.2]} 1... c5 {[%clk 0:03:00.4]} 2. Nf3 {[%clk 0:02:57.1]}
2... e6 {[%clk 0:03:01]} 3. d4 {[%clk 0:02:56.9]} 3... cxd4 {[%clk 0:03:01.9]}
4. Nxd4 {[%clk 0:02:56.5]} 4... a6 {[%clk 0:03:02.6]} 5. Nc3 {[%clk 0:02:56]}
5... b5 {[%clk 0:03:02.3]} 6. Be3 {[%clk 0:02:54.8]} 6... Bb7 {[%clk 0:03:02.2]}
7. Qd2 {[%clk 0:02:54.1]} 7... Qc7 {[%clk 0:03:02.6]} 8. a3 {[%clk 0:02:43.7]}
8... Nf6 {[%clk 0:03:02.9]} 9. f3 {[%clk 0:02:42.9]} 9... d6 {[%clk 0:03:03.2]}
10. Bd3 {[%clk 0:02:42]} 10... Nbd7 {[%clk 0:03:03.7]} 11. O-O {[%clk
0:02:41.6]} 11... Be7 {[%clk 0:03:04.3]} 12. Rae1 {[%clk 0:02:41.6]} 12... O-O
{[%clk 0:03:04.7]} 13. Qf2 {[%clk 0:02:40.9]} 13... Rac8 {[%clk 0:03:02.3]} 14.
g4 {[%clk 0:02:37.1]} 14... Ne5 {[%clk 0:03:02.2]} 15. Qg3 {[%clk 0:02:18.6]}
15... Nc4 {[%clk 0:03:01.3]} 16. Bc1 {[%clk 0:02:18.7]} 16... Nxa3 {[%clk
0:02:59.8]} 17. h4 {[%clk 0:01:52.1]} 17... Nc4 {[%clk 0:02:57.4]} 18. h5 {[%clk
0:01:49]} 18... Qb6 {[%clk 0:02:44.5]} 19. Qf2 {[%clk 0:01:39.6]} 19... Nd7
{[%clk 0:02:43.1]} 20. Kh2 {[%clk 0:01:34.6]} 20... Bf6 {[%clk 0:02:33.8]} 21.
Nde2 {[%clk 0:01:28.6]} 21... Qxf2+ {[%clk 0:02:30.7]} 22. Rxf2 {[%clk
0:01:29.1]} 22... Bh4 {[%clk 0:02:26.9]} 23. Ng3 {[%clk 0:01:26]} 23... Nde5
{[%clk 0:02:25.2]} 24. Be2 {[%clk 0:01:19.3]} 24... b4 {[%clk 0:02:04.5]} 25.
Na4 {[%clk 0:01:16]} 25... Bc6 {[%clk 0:02:04.9]} 26. b3 {[%clk 0:01:14.1]}
26... Na3 {[%clk 0:02:03.9]} 27. c3 {[%clk 0:00:48.7]} 27... Bxa4 {[%clk
0:02:02.1]} 28. bxa4 {[%clk 0:00:48.9]} 28... Rxc3 {[%clk 0:02:01]} 29. Kh3
{[%clk 0:00:46.7]} 29... Bxg3 {[%clk 0:01:54.5]} 30. Kxg3 {[%clk 0:00:46.4]}
30... Nd3 {[%clk 0:01:55.2]} 31. Bxd3 {[%clk 0:00:43.2]} 31... Rxd3 {[%clk
0:01:56.1]} 32. g5 {[%clk 0:00:40.6]} 32... Nc4 {[%clk 0:01:50.5]} 33. Rc2
{[%clk 0:00:39.5]} 33... d5 {[%clk 0:01:47.9]} 34. exd5 {[%clk 0:00:37.9]} 34...
exd5 {[%clk 0:01:48.8]} 35. Re7 {[%clk 0:00:36.6]} 35... b3 {[%clk 0:01:48.4]}
36. Rce2 {[%clk 0:00:35.4]} 36... Rc3 {[%clk 0:01:36.2]} 37. Bb2 {[%clk
0:00:30.6]} 37... Rc2 {[%clk 0:01:30.7]} 38. Re8 {[%clk 0:00:08]} 38... Rxb2
{[%clk 0:01:20.9]} 39. g6 {[%clk 0:00:08.4]} 39... hxg6 {[%clk 0:01:19.8]} 40.
h6 {[%clk 0:00:07.4]} 40... gxh6 {[%clk 0:01:19.4]} 0-1

[Event "Late-Titled-Tuesday-Blitz-January-23-2024"]
[Site "Chess.com"]
[Date "2024.01.23"]
[Round "2"]
[White "C_K_G"]
[Black "GMFYHR1"]
[Result "0-1"]
[WhiteElo "2132"]
[BlackElo "2466"]
[TimeControl "180+1"]
[EndTime "14:16:52 PST"]
[Termination "GMFYHR1 won on time"]

1. e4 {[%clk 0:03:00.9]} 1... e6 {[%clk 0:02:55.3]} 2. Nf3 {[%clk 0:03:01.2]}
2... d5 {[%clk 0:02:55.3]} 3. Nc3 {[%clk 0:03:02.1]} 3... dxe4 {[%clk
0:02:53.5]} 4. Nxe4 {[%clk 0:03:01.7]} 4... Bd7 {[%clk 0:02:53.9]} 5. d4 {[%clk
0:03:01.2]} 5... Bc6 {[%clk 0:02:54.1]} 6. Bd3 {[%clk 0:03:00.1]} 6... Be7
{[%clk 0:02:52.3]} 7. O-O {[%clk 0:02:59.3]} 7... Nd7 {[%clk 0:02:51.9]} 8. Re1
{[%clk 0:02:58.7]} 8... Ngf6 {[%clk 0:02:51.2]} 9. Ng3 {[%clk 0:02:57.2]} 9...
O-O {[%clk 0:02:51.2]} 10. c4 {[%clk 0:02:57]} 10... b6 {[%clk 0:02:44.3]} 11.
Qe2 {[%clk 0:02:52]} 11... Bb7 {[%clk 0:02:44.1]} 12. Bd2 {[%clk 0:02:40.3]}
12... Re8 {[%clk 0:02:43.6]} 13. Bc3 {[%clk 0:02:37.9]} 13... c5 {[%clk
0:02:42.9]} 14. Rad1 {[%clk 0:02:34.4]} 14... cxd4 {[%clk 0:02:42.8]} 15. Bxd4
{[%clk 0:02:33.4]} 15... Qc7 {[%clk 0:02:38.7]} 16. Ne5 {[%clk 0:02:19.1]} 16...
Rad8 {[%clk 0:02:16]} 17. a3 {[%clk 0:01:45.6]} 17... Bc5 {[%clk 0:02:07]} 18.
Bc3 {[%clk 0:01:36.9]} 18... Nxe5 {[%clk 0:01:41.9]} 19. Bxe5 {[%clk 0:01:05.8]}
19... Qc6 {[%clk 0:01:41.6]} 20. Ne4 {[%clk 0:00:19.9]} 20... Nxe4 {[%clk
0:01:36.6]} 21. Bxe4 {[%clk 0:00:19]} 21... Qxe4 {[%clk 0:01:31.9]} 22. Qxe4
{[%clk 0:00:16.3]} 22... Bxe4 {[%clk 0:01:31.4]} 23. Rxd8 {[%clk 0:00:11.8]}
23... Rxd8 {[%clk 0:01:31.6]} 24. b4 {[%clk 0:00:11.2]} 24... Be7 {[%clk
0:01:28.3]} 25. f3 {[%clk 0:00:09.3]} 25... Bb7 {[%clk 0:01:27.5]} 26. c5 {[%clk
0:00:09.1]} 26... bxc5 {[%clk 0:01:27.2]} 27. b5 {[%clk 0:00:09.3]} 27... Bf6
{[%clk 0:01:14.9]} 28. Bc7 {[%clk 0:00:08.2]} 28... Rc8 {[%clk 0:01:08.4]} 29.
Bf4 {[%clk 0:00:05.5]} 29... c4 {[%clk 0:01:08.7]} 30. a4 {[%clk 0:00:05.3]}
30... c3 {[%clk 0:01:08.2]} 31. a5 {[%clk 0:00:05.1]} 31... c2 {[%clk
0:01:08.6]} 32. a6 {[%clk 0:00:04.6]} 32... Bd5 {[%clk 0:01:08.5]} 33. Kf2
{[%clk 0:00:01.6]} 33... Bb2 {[%clk 0:01:05.6]} 0-1

[Event "Late-Titled-Tuesday-Blitz-January-23-2024"]
[Site "Chess.com"]
[Date "2024.01.23"]
[Round "2"]
[White "familijatop71"]
[Black "Defenstrator"]
[Result "0-1"]
[WhiteElo "2258"]
[BlackElo "2510"]
[TimeControl "180+1"]
[EndTime "14:16:58 PST"]
[Termination "Defenstrator won on time"]

1. e4 {[%clk 0:03:00.9]} 1... d6 {[%clk 0:03:00.9]} 2. d4 {[%clk 0:03:00.4]}
2... Nf6 {[%clk 0:03:01.4]} 3. Nc3 {[%clk 0:03:00.2]} 3... Nbd7 {[%clk
0:03:00.2]} 4. Nf3 {[%clk 0:02:56.1]} 4... g6 {[%clk 0:02:59.8]} 5. Be2 {[%clk
0:02:43.8]} 5... Bg7 {[%clk 0:02:59.9]} 6. O-O {[%clk 0:02:41.9]} 6... O-O
{[%clk 0:03:00.1]} 7. h3 {[%clk 0:02:41.9]} 7... e5 {[%clk 0:02:59.5]} 8. Re1
{[%clk 0:02:20]} 8... exd4 {[%clk 0:02:54.5]} 9. Nxd4 {[%clk 0:02:13.9]} 9...
Nc5 {[%clk 0:02:54.9]} 10. Bf3 {[%clk 0:02:00.7]} 10... Ne6 {[%clk 0:02:48.7]}
11. Nxe6 {[%clk 0:01:35.8]} 11... fxe6 {[%clk 0:02:46.8]} 12. Qe2 {[%clk
0:01:31.7]} 12... Nd7 {[%clk 0:02:44.3]} 13. g3 {[%clk 0:01:24]} 13... Bd4
{[%clk 0:02:37.1]} 14. Be3 {[%clk 0:01:19.9]} 14... Ne5 {[%clk 0:02:35.3]} 15.
Bg2 {[%clk 0:01:19.6]} 15... c5 {[%clk 0:02:32.3]} 16. f4 {[%clk 0:01:15.4]}
16... Nc6 {[%clk 0:02:19.6]} 17. Nb5 {[%clk 0:01:12]} 17... Bxb2 {[%clk
0:02:17.7]} 18. Rab1 {[%clk 0:01:12.2]} 18... Bd4 {[%clk 0:02:08.5]} 19. Nxd4
{[%clk 0:01:10.5]} 19... cxd4 {[%clk 0:02:08.7]} 20. Bd2 {[%clk 0:01:06.4]}
20... e5 {[%clk 0:02:08.3]} 21. Rf1 {[%clk 0:00:49.5]} 21... Qe7 {[%clk
0:02:07.4]} 22. g4 {[%clk 0:00:44.2]} 22... Be6 {[%clk 0:02:06.1]} 23. f5 {[%clk
0:00:42.3]} 23... Bxa2 {[%clk 0:02:05.9]} 24. Rb2 {[%clk 0:00:38.6]} 24... Bf7
{[%clk 0:02:05.1]} 25. Bh6 {[%clk 0:00:33.8]} 25... Rfc8 {[%clk 0:01:56.6]} 26.
fxg6 {[%clk 0:00:28.6]} 26... Bxg6 {[%clk 0:01:55.2]} 27. Qd2 {[%clk 0:00:17.4]}
27... Nd8 {[%clk 0:01:51.5]} 28. Bg5 {[%clk 0:00:17.2]} 28... Qc7 {[%clk
0:01:44.2]} 29. Bf6 {[%clk 0:00:14.3]} 29... Ne6 {[%clk 0:01:38.5]} 30. Qh6
{[%clk 0:00:11.9]} 30... Nf4 {[%clk 0:01:38.9]} 31. Rxf4 {[%clk 0:00:09.2]}
31... exf4 {[%clk 0:01:39.1]} 32. e5 {[%clk 0:00:07.5]} 32... Kf7 {[%clk
0:01:08.2]} 33. Bd5+ {[%clk 0:00:04.8]} 33... Ke8 {[%clk 0:01:08.6]} 34. Qg5
{[%clk 0:00:02.6]} 34... d3 {[%clk 0:01:03.9]} 35. Rxb7 {[%clk 0:00:02.7]} 35...
d2 {[%clk 0:00:58.6]} 36. Rxc7 {[%clk 0:00:01.6]} 36... d1=Q+ {[%clk 0:00:58.7]}
37. Kg2 {[%clk 0:00:01.9]} 37... Rxc7 {[%clk 0:00:57.4]} 0-1

[Event "Late-Titled-Tuesday-Blitz-January-23-2024"]
[Site "Chess.com"]
[Date "2024.01.23"]
[Round "2"]
[White "jerry_77"]
[Black "tptagain"]
[Result "0-1"]
[WhiteElo "2582"]
[BlackElo "2922"]
[TimeControl "180+1"]
[EndTime "14:16:59 PST"]
[Termination "tptagain won by resignation"]

1. e4 {[%clk 0:03:00.9]} 1... c5 {[%clk 0:02:59.6]} 2. Nf3 {[%clk 0:03:00.1]}
2... Nc6 {[%clk 0:03:00.3]} 3. d4 {[%clk 0:03:00.2]} 3... cxd4 {[%clk
0:03:01.2]} 4. Nxd4 {[%clk 0:03:01.1]} 4... e5 {[%clk 0:03:01.8]} 5. Nb3 {[%clk
0:03:01.1]} 5... Nf6 {[%clk 0:03:01.3]} 6. Nc3 {[%clk 0:03:01.4]} 6... Bb4
{[%clk 0:03:01.7]} 7. Bd3 {[%clk 0:03:01.9]} 7... Bxc3+ {[%clk 0:02:37.9]} 8.
bxc3 {[%clk 0:02:59.8]} 8... d6 {[%clk 0:02:38.2]} 9. O-O {[%clk 0:02:59.7]}
9... O-O {[%clk 0:02:38.1]} 10. h3 {[%clk 0:02:56.7]} 10... b6 {[%clk
0:02:36.7]} 11. Bg5 {[%clk 0:02:55.2]} 11... h6 {[%clk 0:02:36.7]} 12. Bh4
{[%clk 0:02:55.4]} 12... g5 {[%clk 0:02:34.7]} 13. Bg3 {[%clk 0:02:55.4]} 13...
Ne7 {[%clk 0:02:29.7]} 14. a4 {[%clk 0:02:54.3]} 14... Be6 {[%clk 0:02:28.7]}
15. a5 {[%clk 0:02:51.8]} 15... Qc7 {[%clk 0:02:28.8]} 16. Qd2 {[%clk
0:02:47.8]} 16... Ng6 {[%clk 0:02:28.4]} 17. Ra3 {[%clk 0:02:43]} 17... Rac8
{[%clk 0:02:13.4]} 18. Nc1 {[%clk 0:02:40.1]} 18... Qc6 {[%clk 0:01:57.2]} 19.
Qe3 {[%clk 0:02:30.9]} 19... Nf4 {[%clk 0:01:50.6]} 20. Ne2 {[%clk 0:02:28.1]}
20... Qc5 {[%clk 0:01:45]} 21. Rfa1 {[%clk 0:02:12.5]} 21... Qxe3 {[%clk
0:01:38.7]} 22. fxe3 {[%clk 0:02:11.5]} 22... Nxe2+ {[%clk 0:01:38.5]} 23. Bxe2
{[%clk 0:02:09.7]} 23... Nxe4 {[%clk 0:01:38.9]} 24. Be1 {[%clk 0:02:09.7]}
24... Rc7 {[%clk 0:01:23.3]} 25. Bd3 {[%clk 0:02:09]} 25... Nf6 {[%clk
0:01:21.4]} 26. e4 {[%clk 0:02:01.8]} 26... b5 {[%clk 0:01:13.9]} 27. a6 {[%clk
0:01:57.9]} 27... Bc4 {[%clk 0:01:12.8]} 28. Bf2 {[%clk 0:01:51.2]} 28... Rfc8
{[%clk 0:01:12.5]} 29. Be3 {[%clk 0:01:36.5]} 29... Kg7 {[%clk 0:01:12.6]} 30.
Kf2 {[%clk 0:01:36.3]} 30... Rd7 {[%clk 0:01:12.6]} 31. Kf3 {[%clk 0:01:31]}
31... Rc6 {[%clk 0:01:08.5]} 32. Rb1 {[%clk 0:01:25.7]} 32... d5 {[%clk
0:01:07.3]} 33. exd5 {[%clk 0:00:58.6]} 33... Nxd5 {[%clk 0:01:05.7]} 34. Bf2
{[%clk 0:00:36.8]} 34... Nxc3 {[%clk 0:00:55.4]} 35. Rxc3 {[%clk 0:00:30.6]}
35... Bd5+ {[%clk 0:00:55.3]} 36. Ke2 {[%clk 0:00:30.7]} 36... Rxc3 {[%clk
0:00:55.3]} 37. Rxb5 {[%clk 0:00:26.9]} 37... Bc4 {[%clk 0:00:52.2]} 38. Rb7
{[%clk 0:00:23.3]} 38... Rxc2+ {[%clk 0:00:52.2]} 39. Ke1 {[%clk 0:00:20.2]}
39... Rxd3 {[%clk 0:00:51.7]} 40. Bxa7 {[%clk 0:00:17.9]} 40... Ra3 {[%clk
0:00:47.9]} 0-1

[Event "Late-Titled-Tuesday-Blitz-January-23-2024"]
[Site "Chess.com"]
[Date "2024.01.23"]
[Round "2"]
[White "1mbl4"]
[Black "ChessFighter_2011"]
[Result "0-1"]
[WhiteElo "2585"]
[BlackElo "2927"]
[TimeControl "180+1"]
[EndTime "14:17:02 PST"]
[Termination "ChessFighter_2011 won by resignation"]

1. d4 {[%clk 0:03:00.9]} 1... Nf6 {[%clk 0:02:59.8]} 2. Nf3 {[%clk 0:03:00]}
2... g6 {[%clk 0:02:58.4]} 3. Bf4 {[%clk 0:02:59.6]} 3... d6 {[%clk 0:02:58.5]}
4. e3 {[%clk 0:02:59.8]} 4... Bg7 {[%clk 0:02:58.9]} 5. h3 {[%clk 0:02:59.9]}
5... O-O {[%clk 0:02:59.2]} 6. Be2 {[%clk 0:03:00.2]} 6... Nbd7 {[%clk
0:02:59.5]} 7. O-O {[%clk 0:02:59.5]} 7... b6 {[%clk 0:02:59.9]} 8. a4 {[%clk
0:02:57.2]} 8... a6 {[%clk 0:02:57.8]} 9. c3 {[%clk 0:02:52.6]} 9... Bb7 {[%clk
0:02:57.8]} 10. Nfd2 {[%clk 0:02:49.7]} 10... Qc8 {[%clk 0:02:56.5]} 11. Na3
{[%clk 0:02:47.7]} 11... Ne4 {[%clk 0:02:56.1]} 12. Nxe4 {[%clk 0:02:46.4]}
12... Bxe4 {[%clk 0:02:57]} 13. Bf3 {[%clk 0:02:45.8]} 13... Nf6 {[%clk
0:02:57.2]} 14. Bxe4 {[%clk 0:02:36.5]} 14... Nxe4 {[%clk 0:02:58.1]} 15. Bh2
{[%clk 0:02:30.4]} 15... c5 {[%clk 0:02:55.9]} 16. f3 {[%clk 0:02:20.5]} 16...
Nf6 {[%clk 0:02:54.4]} 17. e4 {[%clk 0:02:20.6]} 17... Qb7 {[%clk 0:02:51.9]}
18. Re1 {[%clk 0:02:15.7]} 18... b5 {[%clk 0:02:43.6]} 19. e5 {[%clk 0:01:59.7]}
19... dxe5 {[%clk 0:02:39.4]} 20. dxe5 {[%clk 0:01:59.6]} 20... Nd5 {[%clk
0:02:37.7]} 21. axb5 {[%clk 0:01:41.6]} 21... axb5 {[%clk 0:02:35.2]} 22. Qe2
{[%clk 0:01:41.3]} 22... c4 {[%clk 0:02:31.1]} 23. Qe4 {[%clk 0:01:32.2]} 23...
e6 {[%clk 0:02:29.3]} 24. Kh1 {[%clk 0:01:29.4]} 24... Rfc8 {[%clk 0:02:27.6]}
25. Nc2 {[%clk 0:01:27.3]} 25... Rxa1 {[%clk 0:02:13.8]} 26. Rxa1 {[%clk
0:01:26.3]} 26... Ra8 {[%clk 0:02:14.3]} 27. Qe1 {[%clk 0:01:24.9]} 27... Bf8
{[%clk 0:02:12.2]} 28. Nd4 {[%clk 0:01:10.2]} 28... b4 {[%clk 0:02:09.8]} 29.
Bg1 {[%clk 0:00:59.1]} 29... b3 {[%clk 0:02:06.1]} 30. Rb1 {[%clk 0:00:56.9]}
30... Ra2 {[%clk 0:02:04.8]} 31. Qe4 {[%clk 0:00:53.3]} 31... Qa6 {[%clk
0:01:49.1]} 32. f4 {[%clk 0:00:44.3]} 32... Ra1 {[%clk 0:01:30.3]} 33. Nf3
{[%clk 0:00:30.7]} 33... Rxb1 {[%clk 0:01:21.7]} 34. Qxb1 {[%clk 0:00:30]} 34...
Qa2 {[%clk 0:01:22.4]} 35. Qc1 {[%clk 0:00:20.8]} 35... Ba3 {[%clk 0:01:21.8]}
36. Qf1 {[%clk 0:00:16.1]} 36... Qxb2 {[%clk 0:01:17.3]} 37. Qxc4 {[%clk
0:00:16.1]} 37... Qxc3 {[%clk 0:01:17.8]} 38. Qb5 {[%clk 0:00:09.9]} 38... b2
{[%clk 0:01:14]} 39. Ng5 {[%clk 0:00:10.2]} 39... Qb4 {[%clk 0:01:04.6]} 40.
Qe8+ {[%clk 0:00:09.9]} 40... Qf8 {[%clk 0:01:05]} 41. Qb5 {[%clk 0:00:09.9]}
41... Nc3 {[%clk 0:01:04.9]} 42. Ne4 {[%clk 0:00:09.9]} 42... Nxb5 {[%clk
0:01:04.7]} 0-1

[Event "Late-Titled-Tuesday-Blitz-January-23-2024"]
[Site "Chess.com"]
[Date "2024.01.23"]
[Round "2"]
[White "Fh2411"]
[Black "Sanan_Sjugirov"]
[Result "0-1"]
[WhiteElo "2615"]
[BlackElo "3016"]
[TimeControl "180+1"]
[EndTime "14:17:03 PST"]
[Termination "Sanan_Sjugirov won on time"]

1. d4 {[%clk 0:02:51.4]} 1... Nf6 {[%clk 0:02:59.6]} 2. Nf3 {[%clk 0:02:50.5]}
2... g6 {[%clk 0:02:59.9]} 3. c4 {[%clk 0:02:50.5]} 3... Bg7 {[%clk 0:03:00.2]}
4. Nc3 {[%clk 0:02:51.3]} 4... d6 {[%clk 0:03:00.8]} 5. Bg5 {[%clk 0:02:51.2]}
5... h6 {[%clk 0:02:59.9]} 6. Bh4 {[%clk 0:02:51.3]} 6... g5 {[%clk 0:02:58]} 7.
Bg3 {[%clk 0:02:51.3]} 7... Nh5 {[%clk 0:02:58.7]} 8. e3 {[%clk 0:02:50.7]} 8...
c5 {[%clk 0:02:54.7]} 9. d5 {[%clk 0:02:45.9]} 9... Qb6 {[%clk 0:02:50.3]} 10.
Qc2 {[%clk 0:02:25]} 10... Na6 {[%clk 0:02:41.9]} 11. a3 {[%clk 0:02:17.5]}
11... Bf5 {[%clk 0:02:35.1]} 12. Qa4+ {[%clk 0:01:24.7]} 12... Bd7 {[%clk
0:02:32]} 13. Qc2 {[%clk 0:01:24.5]} 13... Bf5 {[%clk 0:02:32.6]} 14. Qa4+
{[%clk 0:01:24]} 14... Kf8 {[%clk 0:02:33]} 15. Qb5 {[%clk 0:01:23.4]} 15... Nc7
{[%clk 0:02:28.5]} 16. Qxb6 {[%clk 0:01:15]} 16... axb6 {[%clk 0:02:29.4]} 17.
Be2 {[%clk 0:01:08.9]} 17... Nxg3 {[%clk 0:02:13.7]} 18. hxg3 {[%clk 0:01:08.2]}
18... Bxc3+ {[%clk 0:02:14.4]} 19. bxc3 {[%clk 0:01:07.9]} 19... Kg7 {[%clk
0:02:14.9]} 20. Nd2 {[%clk 0:01:02.8]} 20... Ra6 {[%clk 0:02:10.2]} 21. e4
{[%clk 0:01:00.2]} 21... Bg6 {[%clk 0:02:07.7]} 22. f3 {[%clk 0:00:49.5]} 22...
Rha8 {[%clk 0:02:06.6]} 23. Nb1 {[%clk 0:00:50.1]} 23... f5 {[%clk 0:01:52.4]}
24. Bd3 {[%clk 0:00:47.2]} 24... fxe4 {[%clk 0:01:52.2]} 25. fxe4 {[%clk
0:00:46.9]} 25... Ne8 {[%clk 0:01:50.2]} 26. Ra2 {[%clk 0:00:35.6]} 26... Nf6
{[%clk 0:01:49]} 27. Rb2 {[%clk 0:00:32.6]} 27... Ng4 {[%clk 0:01:43.1]} 28. Rf1
{[%clk 0:00:30.6]} 28... Ne5 {[%clk 0:01:42.6]} 29. Ke2 {[%clk 0:00:25.3]} 29...
Nd7 {[%clk 0:01:23.5]} 30. Ke3 {[%clk 0:00:22.6]} 30... h5 {[%clk 0:01:19.9]}
31. Rff2 {[%clk 0:00:15.8]} 31... Rh8 {[%clk 0:01:19.1]} 32. Rb3 {[%clk
0:00:13.2]} 32... h4 {[%clk 0:01:11.5]} 33. gxh4 {[%clk 0:00:12.9]} 33... Rxh4
{[%clk 0:01:12.4]} 34. Nd2 {[%clk 0:00:10.4]} 34... Ne5 {[%clk 0:01:10.6]} 35.
Rf1 {[%clk 0:00:04.4]} 35... Rg4 {[%clk 0:01:04.7]} 36. Rf2 {[%clk 0:00:01.4]}
36... Rg3+ {[%clk 0:00:57.1]} 0-1

[Event "Late-Titled-Tuesday-Blitz-January-23-2024"]
[Site "Chess.com"]
[Date "2024.01.23"]
[Round "2"]
[White "Firouzja2003"]
[Black "Harry_Rakkel"]
[Result "1-0"]
[WhiteElo "3144"]
[BlackElo "2691"]
[TimeControl "180+1"]
[EndTime "14:17:04 PST"]
[Termination "Firouzja2003 won by resignation"]

1. d4 {[%clk 0:03:00.9]} 1... Nf6 {[%clk 0:02:58.7]} 2. Bg5 {[%clk 0:03:01.4]}
2... e6 {[%clk 0:02:55.9]} 3. Nc3 {[%clk 0:02:58]} 3... Bb4 {[%clk 0:02:49.1]}
4. e4 {[%clk 0:02:48.4]} 4... h6 {[%clk 0:02:44.8]} 5. Bd2 {[%clk 0:02:35.2]}
5... Bxc3 {[%clk 0:02:34.5]} 6. Bxc3 {[%clk 0:02:35]} 6... Nxe4 {[%clk
0:02:31.2]} 7. Qg4 {[%clk 0:02:34.6]} 7... Nxc3 {[%clk 0:02:28.1]} 8. Qxg7
{[%clk 0:02:34.1]} 8... Rf8 {[%clk 0:02:24.3]} 9. bxc3 {[%clk 0:02:33.7]} 9...
Qg5 {[%clk 0:02:23.8]} 10. Qh7 {[%clk 0:02:32.8]} 10... f5 {[%clk 0:02:15.9]}
11. Nh3 {[%clk 0:01:59.6]} 11... Qf6 {[%clk 0:02:09.1]} 12. Nf4 {[%clk
0:01:59.8]} 12... Rh8 {[%clk 0:01:56.3]} 13. Nh5 {[%clk 0:01:57]} 13... Qf8
{[%clk 0:01:49]} 14. Qg6+ {[%clk 0:01:56.9]} 14... Qf7 {[%clk 0:01:44.9]} 15.
Qxf7+ {[%clk 0:01:49.1]} 15... Kxf7 {[%clk 0:01:44.7]} 16. f3 {[%clk 0:01:48.3]}
16... Nc6 {[%clk 0:01:35.8]} 17. g4 {[%clk 0:01:47]} 17... Rg8 {[%clk 0:01:30]}
18. gxf5 {[%clk 0:01:38.8]} 18... Ne7 {[%clk 0:01:22.7]} 19. fxe6+ {[%clk
0:01:38.3]} 19... dxe6 {[%clk 0:01:23.6]} 20. Bd3 {[%clk 0:01:27]} 20... Bd7
{[%clk 0:01:19.2]} 21. Kf2 {[%clk 0:01:25.3]} 21... Rg5 {[%clk 0:01:15.8]} 22.
Ng3 {[%clk 0:01:23.6]} 22... Nd5 {[%clk 0:01:09.2]} 23. Ne4 {[%clk 0:01:20.2]}
23... Rg7 {[%clk 0:01:08.5]} 24. Rhg1 {[%clk 0:01:10]} 24... Rag8 {[%clk
0:01:07.7]} 25. Rg3 {[%clk 0:01:10.3]} 25... b6 {[%clk 0:01:03.7]} 26. Rag1
{[%clk 0:01:00.9]} 26... Nf4 {[%clk 0:01:02.8]} 27. Ke3 {[%clk 0:00:57.4]} 27...
Nd5+ {[%clk 0:00:58.4]} 28. Kd2 {[%clk 0:00:57.6]} 28... Bc6 {[%clk 0:00:58.5]}
29. c4 {[%clk 0:00:51.2]} 29... Nf4 {[%clk 0:00:55.9]} 30. Ke3 {[%clk
0:00:47.4]} 30... Nh3 {[%clk 0:00:50.1]} 31. Rxg7+ {[%clk 0:00:43.4]} 31... Rxg7
{[%clk 0:00:51]} 32. Rg3 {[%clk 0:00:37.1]} 32... Rxg3 {[%clk 0:00:45.3]} 33.
hxg3 {[%clk 0:00:38]} 33... Bxe4 {[%clk 0:00:45]} 34. Bxe4 {[%clk 0:00:35.6]}
34... Ng5 {[%clk 0:00:44.4]} 35. f4 {[%clk 0:00:30.7]} 35... Nxe4 {[%clk
0:00:34.3]} 36. Kxe4 {[%clk 0:00:31.6]} 36... Kf6 {[%clk 0:00:33.6]} 37. g4
{[%clk 0:00:31.6]} 37... c6 {[%clk 0:00:32.6]} 38. d5 {[%clk 0:00:25.4]} 1-0

[Event "Late-Titled-Tuesday-Blitz-January-23-2024"]
[Site "Chess.com"]
[Date "2024.01.23"]
[Round "2"]
[White "rikchessmx"]
[Black "Flameboard08"]
[Result "0-1"]
[WhiteElo "2378"]
[BlackElo "2556"]
[TimeControl "180+1"]
[EndTime "14:17:05 PST"]
[Termination "Flameboard08 won by checkmate"]

1. e4 {[%clk 0:03:00.9]} 1... b6 {[%clk 0:02:57.1]} 2. d4 {[%clk 0:02:59.8]}
2... Bb7 {[%clk 0:02:54.3]} 3. Nc3 {[%clk 0:02:59.5]} 3... e6 {[%clk 0:02:55]}
4. a3 {[%clk 0:02:57.8]} 4... d5 {[%clk 0:02:51.6]} 5. e5 {[%clk 0:02:30.8]}
5... c5 {[%clk 0:02:51]} 6. Nf3 {[%clk 0:02:30.1]} 6... Nc6 {[%clk 0:02:49.1]}
7. Bb5 {[%clk 0:02:29.1]} 7... Ne7 {[%clk 0:02:45.7]} 8. Ne2 {[%clk 0:02:27.7]}
8... a6 {[%clk 0:02:42.5]} 9. Ba4 {[%clk 0:02:27.4]} 9... Nf5 {[%clk 0:02:32.1]}
10. c3 {[%clk 0:02:26.8]} 10... Be7 {[%clk 0:02:20]} 11. O-O {[%clk 0:02:26]}
11... O-O {[%clk 0:02:18.1]} 12. Bc2 {[%clk 0:02:25.2]} 12... Rc8 {[%clk
0:02:13.7]} 13. Ng3 {[%clk 0:02:23.8]} 13... g6 {[%clk 0:02:08.7]} 14. Nxf5
{[%clk 0:02:22.4]} 14... exf5 {[%clk 0:02:07.6]} 15. Bh6 {[%clk 0:02:21.1]}
15... Re8 {[%clk 0:02:06]} 16. Qd2 {[%clk 0:02:18.8]} 16... cxd4 {[%clk
0:02:04.2]} 17. cxd4 {[%clk 0:02:18.6]} 17... Na5 {[%clk 0:02:02.8]} 18. b3
{[%clk 0:02:13.2]} 18... Qc7 {[%clk 0:01:50.7]} 19. Rfc1 {[%clk 0:02:12]} 19...
Qc3 {[%clk 0:01:45.3]} 20. Qf4 {[%clk 0:02:05.8]} 20... Nxb3 {[%clk 0:01:40.5]}
21. Bxb3 {[%clk 0:02:05.7]} 21... Qxb3 {[%clk 0:01:41.3]} 22. Rcb1 {[%clk
0:02:04.1]} 22... Qc3 {[%clk 0:01:31.7]} 23. Bg5 {[%clk 0:02:03.8]} 23... Bf8
{[%clk 0:01:24.5]} 24. h4 {[%clk 0:01:46.6]} 24... h5 {[%clk 0:01:13.9]} 25. Bh6
{[%clk 0:01:45.3]} 25... Be7 {[%clk 0:01:05.8]} 26. Bg5 {[%clk 0:01:45.1]} 26...
Bxa3 {[%clk 0:00:48.9]} 27. Rxa3 {[%clk 0:01:35.8]} 27... Qxa3 {[%clk
0:00:49.8]} 28. Bh6 {[%clk 0:01:35.6]} 28... Rc6 {[%clk 0:00:40.4]} 29. Ng5
{[%clk 0:01:26.7]} 29... Rec8 {[%clk 0:00:35.8]} 30. e6 {[%clk 0:01:20]} 30...
f6 {[%clk 0:00:25.8]} 31. Nf7 {[%clk 0:01:12.8]} 31... Rxe6 {[%clk 0:00:17.6]}
32. Bg7 {[%clk 0:01:07.9]} 32... Kxf7 {[%clk 0:00:15.6]} 33. Qh6 {[%clk
0:01:02.7]} 33... Qe7 {[%clk 0:00:12.4]} 34. Bh8 {[%clk 0:01:01.2]} 34... Re1+
{[%clk 0:00:07.8]} 35. Rxe1 {[%clk 0:00:58]} 35... Qxe1+ {[%clk 0:00:08.7]} 36.
Kh2 {[%clk 0:00:58.2]} 36... Qe4 {[%clk 0:00:05.4]} 37. Qg7+ {[%clk 0:00:57.6]}
37... Ke6 {[%clk 0:00:05.1]} 38. Qxf6+ {[%clk 0:00:55.5]} 38... Kd7 {[%clk
0:00:04.6]} 39. Qxb6 {[%clk 0:00:53.7]} 39... Qxh4+ {[%clk 0:00:04.2]} 40. Kg1
{[%clk 0:00:50]} 40... Rc1# {[%clk 0:00:05.1]} 0-1